fUSD/lending_fUSD_20260612
["ID","MTS","AMOUNT","RATE_DAILY","PERIOD"]
[424875647,1781225435000,-151.0,0.00016811,2]
[424875614,1781225435000,-150.0,0.00016506,2]
[424875625,1781225435000,-150.0,0.00016711,2]
[424875622,1781225435000,-232.43731911,0.00016679,2]
[424875624,1781225435000,-151.0,0.00016711,2]
[424875623,1781225435000,-250.0,0.00016679,2]
[424875627,1781225435000,-150.0,0.00016711,2]
[424875626,1781225435000,-152.0,0.00016711,2]
[424875631,1781225435000,-151.0,0.00016711,2]
[424875630,1781225435000,-151.0,0.00016711,2]
[424875628,1781225435000,-151.0,0.00016711,2]
[424875635,1781225435000,-151.0,0.00016711,2]
[424875621,1781225435000,-195.0,0.00016679,2]
[424875634,1781225435000,-152.0,0.00016711,2]
[424875632,1781225435000,-151.0,0.00016711,2]
[424875643,1781225435000,-152.0,0.00016711,2]
[424875644,1781225435000,-152.0,0.00016711,2]
[424875640,1781225435000,-150.0,0.00016711,2]
[424875638,1781225435000,-152.0,0.00016711,2]
[424875642,1781225435000,-292.0,0.00016711,2]
[424875636,1781225435000,-150.0,0.00016711,2]
[424875633,1781225435000,-289.64579611,0.00016711,2]
[424875639,1781225435000,-151.0,0.00016711,2]
[424875641,1781225435000,-151.0,0.00016711,2]
[424875637,1781225435000,-152.0,0.00016711,2]
[424875688,1781225436000,-208.0,0.00021,2]
[424875710,1781225436000,-165.0,0.00022,2]
[424875696,1781225436000,-214.0,0.00021,2]
[424875697,1781225436000,-444.0,0.00021,2]
[424875698,1781225436000,-677.0,0.00021,2]
[424875699,1781225436000,-168.0,0.00021,2]
[424875700,1781225436000,-154.0,0.00021,2]
[424875708,1781225436000,-164.0,0.00022,2]
[424875705,1781225436000,-208.0,0.00022,2]
[424875701,1781225436000,-166.66,0.00021122,2]
[424875704,1781225436000,-5000.0,0.00021918,2]
[424875706,1781225436000,-225.800465,0.00022,2]
[424875709,1781225436000,-151.0,0.00022,2]
[424875703,1781225436000,-150.56,0.0002185,2]
[424875702,1781225436000,-177.24,0.00021277,3]
[424875711,1781225436000,-289.0,0.00022,2]
[424875690,1781225436000,-158.0,0.00021,2]
[424875707,1781225436000,-158.0,0.00022,2]
[424875693,1781225436000,-165.0,0.00021,2]
[424875686,1781225436000,-269.8,0.00020381,2]
[424875695,1781225436000,-177.0,0.00021,2]
[424875673,1781225436000,-158.0,0.0002,2]
[424875674,1781225436000,-164.0,0.0002,2]
[424875675,1781225436000,-151.0,0.0002,2]
[424875678,1781225436000,-177.0,0.0002,2]
[424875677,1781225436000,-289.0,0.0002,2]
[424875676,1781225436000,-165.0,0.0002,2]
[424875679,1781225436000,-214.0,0.0002,2]
[424875715,1781225436000,-677.0,0.00022,2]
[424875694,1781225436000,-289.0,0.00021,2]
[424875684,1781225436000,-334.37,0.00020015,2]
[424875680,1781225436000,-444.0,0.0002,2]
[424875685,1781225436000,-166.66,0.00020317,2]
[424875682,1781225436000,-168.0,0.0002,2]
[424875683,1781225436000,-154.0,0.0002,2]
[424875687,1781225436000,-166.66,0.0002072,2]
[424875691,1781225436000,-164.0,0.00021,2]
[424875689,1781225436000,-225.800465,0.00021,2]
[424875692,1781225436000,-151.0,0.00021,2]
[424875681,1781225436000,-677.0,0.0002,2]
[424875713,1781225436000,-214.0,0.00022,2]
[424875719,1781225436000,-200.0,0.00022181,2]
[424875723,1781225436000,-500.0,0.00022181,2]
[424875742,1781225436000,-151.0,0.00022181,2]
[424875747,1781225436000,-329.56,0.00022466,2]
[424875739,1781225436000,-151.0,0.00022181,2]
[424875738,1781225436000,-151.0,0.00022181,2]
[424875744,1781225436000,-160.0,0.00022194,2]
[424875741,1781225436000,-151.0,0.00022181,2]
[424875712,1781225436000,-177.0,0.00022,2]
[424875748,1781225436000,-475.57,0.00022466,2]
[424875743,1781225436000,-215.95576085,0.00022194,2]
[424875745,1781225436000,-269.8,0.00022353,2]
[424875737,1781225436000,-151.0,0.00022181,2]
[424875750,1781225436000,-18651.8829,0.00022623,2]
[424875749,1781225436000,-150.0,0.0002254,2]
[424875751,1781225436000,-208.0,0.00023,2]
[424875755,1781225436000,-151.0,0.00023,2]
[424875754,1781225436000,-164.0,0.00023,2]
[424875753,1781225436000,-158.0,0.00023,2]
[424875752,1781225436000,-225.800465,0.00023,2]
[424875740,1781225436000,-151.0,0.00022181,2]
[424875736,1781225436000,-151.0,0.00022181,2]
[424875746,1781225436000,-938.74076753,0.00022407,2]
[424875733,1781225436000,-151.0,0.00022181,2]
[424875732,1781225436000,-151.0,0.00022181,2]
[424875721,1781225436000,-500.0,0.00022181,2]
[424875717,1781225436000,-168.0,0.00022,2]
[424875722,1781225436000,-500.0,0.00022181,2]
[424875720,1781225436000,-500.0,0.00022181,2]
[424875714,1781225436000,-444.0,0.00022,2]
[424875718,1781225436000,-154.0,0.00022,2]
[424875735,1781225436000,-151.0,0.00022181,2]
[424875716,1781225436000,-614.79,0.00022,2]
[424875724,1781225436000,-500.0,0.00022181,2]
[424875725,1781225436000,-500.0,0.00022181,2]
[424875730,1781225436000,-500.0,0.00022181,2]
[424875727,1781225436000,-500.0,0.00022181,2]
[424875734,1781225436000,-151.0,0.00022181,2]
[424875728,1781225436000,-312.98176173,0.00022181,2]
[424875729,1781225436000,-187.01823827,0.00022181,2]
[424875731,1781225436000,-500.0,0.00022181,2]
[424875726,1781225436000,-500.0,0.00022181,2]
[424875770,1781225437000,-165.0,0.00024,2]
[424875766,1781225437000,-208.0,0.00024,2]
[424875775,1781225437000,-677.0,0.00024,2]
[424875767,1781225437000,-164.0,0.00024,2]
[424875768,1781225437000,-164.0,0.00024,2]
[424875765,1781225437000,-225.800465,0.00024,2]
[424875769,1781225437000,-151.0,0.00024,2]
[424875762,1781225437000,-168.0,0.00023,2]
[424875759,1781225437000,-214.0,0.00023,2]
[424875763,1781225437000,-161.0,0.00023,2]
[424875758,1781225437000,-177.0,0.00023,2]
[424875761,1781225437000,-677.0,0.00023,2]
[424875760,1781225437000,-444.0,0.00023,2]
[424875756,1781225437000,-165.0,0.00023,2]
[424875757,1781225437000,-289.0,0.00023,2]
[424875773,1781225437000,-214.0,0.00024,2]
[424875764,1781225437000,-150.0,0.00023667,2]
[424875774,1781225437000,-444.0,0.00024,2]
[424875772,1781225437000,-177.0,0.00024,2]
[424875771,1781225437000,-289.0,0.00024,2]
[424875792,1781225437000,-445.53326752,0.00024712,7]
[424875790,1781225437000,-1.3306573,0.00024658,2]
[424875791,1781225437000,-700.0,0.000247,9]
[424875788,1781225437000,-159.38,0.00024658,2]
[424875787,1781225437000,-341.2063756,0.00024658,2]
[424875783,1781225437000,-389.74653631,0.00024622,7]
[424875786,1781225437000,-658.7936244,0.00024658,2]
[424875782,1781225437000,-585.33025306,0.00024622,7]
[424875789,1781225437000,-158.5593427,0.00024658,2]
[424875785,1781225437000,-172.14,0.00024658,2]
[424875780,1781225437000,-269.8,0.00024324,2]
[424875781,1781225437000,-300.0,0.000246,8]
[424875776,1781225437000,-168.0,0.00024,2]
[424875778,1781225437000,-416.13,0.0002411,2]
[424875779,1781225437000,-500.0,0.00024247,2]
[424875777,1781225437000,-288.37,0.0002411,2]
[424875784,1781225437000,-1154.94926235,0.00024622,7]
[424875805,1781225438000,-182.0,0.00025,2]
[424875804,1781225438000,-289.0,0.00025,2]
[424875806,1781225438000,-215.0,0.00025,2]
[424875803,1781225438000,-176.0,0.00025,2]
[424875799,1781225438000,-150.0,0.0002485,2]
[424875800,1781225438000,-1400.0,0.000249,9]
[424875802,1781225438000,-157.0,0.00025,2]
[424875798,1781225438000,-1000.0,0.000248,9]
[424875797,1781225438000,-158.78673248,0.00024712,7]
[424875808,1781225438000,-308.67798866,0.00025,2]
[424875801,1781225438000,-180.0,0.00025,2]
[424875809,1781225438000,-1519.4803845,0.00025,2]
[424875813,1781225438000,-2685.45525733,0.00025,2]
[424875815,1781225438000,-295.39502125,0.00025,4]
[424875821,1781225438000,-500.0,0.00025014,2]
[424875807,1781225438000,-142.32201134,0.00025,2]
[424875823,1781225438000,-3000.0,0.00025014,3]
[424875817,1781225438000,-223.91220685,0.00025014,2]
[424875819,1781225438000,-500.0,0.00025014,2]
[424875822,1781225438000,-359.64300863,0.00025014,2]
[424875816,1781225438000,-154.29,0.00025005,2]
[424875811,1781225438000,-176.0,0.00025,2]
[424875810,1781225438000,-681.0,0.00025,2]
[424875812,1781225438000,-8919.21432648,0.00025,2]
[424875818,1781225438000,-500.0,0.00025014,2]
[424875814,1781225438000,-417.79074014,0.00025,2]
[424875824,1781225439000,-210604.03828039,0.00025015,2]
[424875825,1781225439000,-1480.90998065,0.00025015,2]
[424875832,1781225457000,-791.1615828,0.00025015,2]
[424875831,1781225457000,-1141540.29689614,0.00025015,2]
[424875830,1781225457000,-176.7547755,0.00025,2]
[424875829,1781225457000,-200000.0,0.00025015,2]
[424875828,1781225457000,-11737.3592884,0.00025015,2]
[424875835,1781225458000,-4879.44990815,0.00025015,2]
[424875834,1781225458000,-981.19159346,0.00025015,2]
[424875837,1781225458000,-506.0,0.0002,2]
[424875833,1781225458000,-392.62430394,0.00025015,2]
[424875839,1781225458000,-1879.34860821,0.00025015,2]
[424875836,1781225458000,-150.0,0.00015163,2]
[424875840,1781225458000,-506.0,0.000212,3]
[424875844,1781225458000,-483.0,0.00025015,2]
[424875842,1781225458000,-6288.89999998,0.00025015,2]
[424875838,1781225458000,-1501.3597251,0.00025015,2]
[424875843,1781225458000,-506.0,0.000224,4]
[424875841,1781225458000,-2691.48163148,0.00025015,2]
[424875845,1781225475000,-196.0,0.0002,2]
[424875846,1781225528000,-250.0,0.00014,2]
[424875847,1781225582000,-300.0,0.00016,2]
[424875855,1781225946000,-522.4039367,0.000102,2]
[424875856,1781226001000,-618.74,0.00011,2]
[424875860,1781226020000,-6887.75991501,0.00011,2]
[424875861,1781226049000,-160.60268916,0.0001122,2]
[424875863,1781226049000,-179.21566171,0.000117,2]
[424875862,1781226049000,-3255.15177757,0.000114,2]
[424875868,1781226073000,-2500.0,0.0001375,2]
[424875867,1781226073000,-600.0,0.0001375,2]
[424875866,1781226073000,-204.61661846,0.0001366,2]
[424875865,1781226073000,-1601.13316632,0.000125,2]
[424875864,1781226073000,-301.52,0.000125,2]
[424875869,1781226073000,-1499.28008678,0.0001375,2]
[424875877,1781226092000,-600.0,0.00014084,2]
[424875870,1781226092000,-1000.71991322,0.0001375,2]
[424875871,1781226092000,-2500.0,0.0001375,2]
[424875872,1781226092000,-2500.0,0.0001375,2]
[424875874,1781226092000,-161.56362142,0.0001376,2]
[424875873,1781226092000,-2500.0,0.0001375,2]
[424875875,1781226092000,-600.0,0.00014084,2]
[424875876,1781226092000,-600.0,0.00014084,2]
[424875879,1781226092000,-61.56362142,0.00014084,2]
[424875882,1781226092000,-565.72856693,0.00014963,2]
[424875881,1781226092000,-228.09266036,0.000142,2]
[424875880,1781226092000,-1917.66520408,0.000142,2]
[424875883,1781226092000,-159.02233309,0.00014963,2]
[424875884,1781226092000,-430.50508931,0.00014963,2]
[424875885,1781226092000,-1964.66317148,0.00014963,2]
[424875886,1781226092000,-4672.75935333,0.00015,2]
[424875878,1781226092000,-538.43637858,0.00014084,2]
[424875888,1781226145000,-397.2,0.00015,2]
[424875889,1781226164000,-27994.5096454,0.00015,2]
[424875891,1781226184000,-10000.0,0.00015,2]
[424875890,1781226184000,-27994.5096454,0.00015,2]
[424875892,1781226203000,-150.0,0.00014999,2]
[424875893,1781226203000,-1887.39,0.00014999,2]
[424875895,1781226203000,-1887.39,0.00014999,2]
[424875897,1781226203000,-2450.44,0.00015,2]
[424875896,1781226203000,-1887.39,0.00014999,2]
[424875894,1781226203000,-1887.39,0.00014999,2]
[424875899,1781226256000,-316.37527365,0.000142,2]
[424875907,1781226392000,-500.0,0.00014999,2]
[424875908,1781226392000,-319.94617449,0.00014999,2]
[424875906,1781226392000,-151.0714454,0.00014999,2]
[424875905,1781226392000,-156.7385448,0.00014999,2]
[424875903,1781226392000,-324.34188842,0.00014916,2]
[424875904,1781226392000,-547.90194689,0.00014916,2]
[424875917,1781226637000,-152.0,0.00014598,2]
[424875944,1781226638000,-271.06484369,0.00014916,2]
[424875956,1781226638000,-2500.0,0.00014986,2]
[424875958,1781226638000,-2500.0,0.00014986,2]
[424875942,1781226638000,-376.28842674,0.00014598,2]
[424875960,1781226638000,-2500.0,0.00014986,2]
[424875950,1781226638000,-2500.0,0.00014958,2]
[424875946,1781226638000,-1768.19685435,0.00014916,2]
[424875948,1781226638000,-600.0,0.00014937,2]
[424875931,1781226638000,458.3831517,0.00023,21]
[424875952,1781226638000,-283.79915235,0.00014963,2]
[424875954,1781226638000,-600.0,0.00014974,2]
[424875962,1781226638000,-31680.53645014,0.0001499,2]
[424875986,1781226638000,-4022.25036154,0.00015,2]
[424875988,1781226638000,-1053.71656762,0.00015,2]
[424875990,1781226638000,-12036.2215775,0.00015,2]
[424875983,1781226638000,-191756.52060939,0.00015,2]
[424875981,1781226638000,-35615.58367688,0.00015,2]
[424875978,1781226638000,-163979.78746124,0.00015,2]
[424875974,1781226638000,-2000.0,0.00015,2]
[424875964,1781226638000,-500.0,0.00014999,2]
[424875968,1781226638000,-500.0,0.00014999,2]
[424875976,1781226638000,-366370.20771391,0.00015,2]
[424875970,1781226638000,-500.0,0.00014999,2]
[424875966,1781226638000,-500.0,0.00014999,2]
[424875972,1781226638000,-470.12571085,0.00015,2]
[424876031,1781226639000,-152.44881533,0.00014598,2]
[424876029,1781226639000,-152.44881533,0.00012637,2]
[424876036,1781226639000,-3168.52757685,0.00015,2]
[424876033,1781226639000,-80.85453543,0.00015,2]
[424876038,1781226639000,-1544.86762204,0.00015,2]
[424876040,1781226639000,-506.64728701,0.00015,2]
[424877219,1781226656000,-1500.0,0.00015,2]
[424877220,1781226656000,-199985.84457809,0.00015,2]
[424877224,1781226657000,-5986.30544482,0.00015,2]
[424877223,1781226657000,-623.13978637,0.00015,2]
[424877221,1781226657000,-508.59773041,0.00015,2]
[424877222,1781226657000,-1010.0,0.00015,2]
[424877225,1781226675000,-1500.0,0.00015,2]
[424877226,1781226694000,-760.29,0.00015,2]
[424877227,1781226714000,-760.29,0.00015,2]
[424877228,1781226734000,-4998.14,0.00015,2]
[424877229,1781226754000,-4998.14,0.00015,2]
[424877230,1781226775000,-500.0,0.0001489,2]
[424877231,1781226794000,-500.0,0.0001489,2]
[424877232,1781226813000,-500.0,0.0001489,2]
[424877238,1781227167000,-210.858,0.00014492,2]
[424877239,1781227221000,-586.02891957,0.00014592,2]
[424877240,1781227239000,-166.66,0.00014053,2]
[424877241,1781227292000,-209.36311941,0.00014,2]
[424877242,1781227311000,-40.63688059,0.00014,2]
[424877243,1781227364000,-150.0,0.00014201,2]
[424877245,1781227417000,-199.71852947,0.00014209,2]
[424877246,1781227471000,-160.5324688,0.0001423,2]
[424877247,1781227489000,-285.38,0.00014209,2]
[424877248,1781227534000,-151.0,0.00013692,2]
[424877256,1781227831000,-108.77855852,0.00013753,2]
[424877255,1781227831000,-157.0684764,0.00013692,2]
[424877258,1781227831000,-600.0,0.00013871,2]
[424877257,1781227831000,-495.74144148,0.00013753,2]
[424877263,1781227831000,-2500.0,0.00013951,2]
[424877261,1781227831000,-174.96,0.00013931,2]
[424877272,1781227831000,-2500.0,0.00014143,2]
[424877275,1781227831000,-1439.12214634,0.00014343,2]
[424877265,1781227831000,-230.0,0.00014089,2]
[424877274,1781227831000,-39.4675312,0.0001423,2]
[424877269,1781227831000,-2500.0,0.00014143,2]
[424877267,1781227831000,-400.0,0.00014139,2]
[424877271,1781227831000,-2500.0,0.00014143,2]
[424877276,1781227831000,-1134.46785366,0.00014343,2]
[424877277,1781227831000,-166.66,0.00014349,2]
[424877273,1781227831000,-200.0,0.00014209,2]
[424877280,1781227832000,-1000.0,0.0001448,2]
[424877278,1781227832000,-320.0,0.00014392,2]
[424877284,1781227832000,-13877.75097311,0.0001469,2]
[424877279,1781227832000,-174.96,0.00014396,2]
[424877283,1781227832000,-166.66,0.00014645,2]
[424877289,1781227832000,-14990.0,0.0001469,2]
[424877282,1781227832000,-286.736,0.00014645,2]
[424877281,1781227832000,-4334.966,0.00014645,2]
[424877317,1781227838000,-530.79734601,0.0001469,2]
[424877298,1781227838000,-500.0,0.00014689,2]
[424877300,1781227838000,-518.62722472,0.00014689,2]
[424877296,1781227838000,-363.98,0.00014689,2]
[424877297,1781227838000,-136.02,0.00014689,2]
[424877303,1781227838000,-410.32679568,0.0001469,2]
[424877302,1781227838000,-288717.72644195,0.0001469,2]
[424877299,1781227838000,-500.0,0.00014689,2]
[424877305,1781227838000,-1564.08461408,0.0001469,2]
[424877304,1781227838000,-1420.00650922,0.0001469,2]
[424877315,1781227838000,-3201.2,0.0001469,2]
[424877313,1781227838000,-340.09543272,0.0001469,2]
[424877308,1781227838000,-4445.7886209,0.0001469,2]
[424877301,1781227838000,-611.83952664,0.0001469,2]
[424877306,1781227838000,-575.9080287,0.0001469,2]
[424877307,1781227838000,-275.37,0.0001469,2]
[424877310,1781227838000,-1236.99912227,0.0001469,2]
[424877562,1781227840000,-2083.1298865,0.0001469,2]
[424877513,1781227840000,-1000.0,0.0001469,2]
[424877586,1781227840000,-7961.10631014,0.0001469,2]
[424877664,1781227846000,-1350.20638382,0.0001469,2]
[424877659,1781227846000,-6884.00873607,0.0001469,2]
[424877656,1781227846000,-5090.49999987,0.0001469,2]
[424877658,1781227846000,-1295.32000062,0.0001469,2]
[424877657,1781227846000,-3200.30000002,0.0001469,2]
[424877663,1781227846000,-334.16643892,0.0001469,2]
[424877662,1781227846000,-322.92810829,0.0001469,2]
[424877660,1781227846000,-1917.12498741,0.0001469,2]
[424877668,1781227846000,-299.57349979,0.0001469,2]
[424877666,1781227846000,-947.91973825,0.0001469,2]
[424877675,1781227846000,-275.14764415,0.0001469,2]
[424877676,1781227846000,-1079.88131655,0.0001469,2]
[424877661,1781227846000,-993.83,0.0001469,2]
[424877684,1781227847000,-1234.51860969,0.0001469,2]
[424877682,1781227847000,-3880.83493714,0.0001469,2]
[424877680,1781227847000,-5042.61759842,0.0001469,2]
[424877679,1781227847000,-952.23947126,0.0001469,2]
[424877678,1781227847000,-441.58488408,0.0001469,2]
[424877692,1781227998000,-153.45,0.0001148,2]
[424877694,1781228052000,-166.66,0.00013282,2]
[424877695,1781228105000,-166.66,0.00013561,2]
[424877697,1781228158000,-216.03525972,0.00013743,2]
[424877699,1781228177000,-387.95058884,0.00013743,2]
[424877700,1781228194000,1000.0,0.00021,120]
[424877701,1781228229000,-155.47893395,0.00013841,2]
[424877702,1781228249000,-11.18106605,0.00013841,2]
[424877704,1781228301000,-172.94104957,0.00013864,2]
[424877705,1781228320000,-112.43895043,0.00013864,2]
[424877706,1781228321000,269.0,0.00021,90]
[424877707,1781228373000,-177.09960119,0.00013813,2]
[424877712,1781228713000,-174.96,0.00013569,2]
[424877714,1781228767000,-150.0,0.00013603,2]
[424877715,1781228820000,-320.0,0.00013725,2]
[424877717,1781228874000,-153.77772756,0.00013727,2]
[424877718,1781228927000,-538.02332496,0.00013729,2]
[424877720,1781228947000,-538.02332496,0.00013729,2]
[424877721,1781228966000,-161.99171972,0.00013729,2]
[424877722,1781228987000,-161.99171972,0.00013729,2]
[424877723,1781229006000,-1133.90446887,0.00013729,2]
[424877726,1781229031000,-2242.88125,0.00013743,2]
[424877728,1781229031000,-173.99,0.00013757,2]
[424877727,1781229031000,-257.11875,0.00013743,2]
[424877729,1781229031000,-2500.0,0.00013791,2]
[424877737,1781229031000,-800.80966188,0.00014247,2]
[424877731,1781229031000,-22.90039881,0.00013813,2]
[424877730,1781229031000,-1155.42,0.00013791,2]
[424877732,1781229031000,-200.0,0.00013864,2]
[424877733,1781229031000,-896.2,0.00013985,2]
[424877735,1781229031000,-163.66,0.00014139,2]
[424877734,1781229031000,-166.66,0.0001412,2]
[424877736,1781229031000,-2910.92492741,0.00014247,2]
[424877738,1781229032000,-500.0,0.00014299,2]
[424877744,1781229032000,-500.0,0.00014299,2]
[424877739,1781229032000,-500.0,0.00014299,2]
[424877745,1781229032000,-220.99672247,0.00014299,2]
[424877740,1781229032000,-500.0,0.00014299,2]
[424877746,1781229032000,-500.0,0.00014299,2]
[424877748,1781229032000,-303.8,0.000143,2]
[424877747,1781229032000,-500.0,0.00014299,2]
[424877742,1781229032000,-500.0,0.00014299,2]
[424877752,1781229032000,-556710.89124505,0.000143,2]
[424877743,1781229032000,-500.0,0.00014299,2]
[424877750,1781229032000,-63202.51284827,0.000143,2]
[424877749,1781229032000,-2000.0,0.000143,2]
[424877751,1781229032000,-362.7585741,0.000143,2]
[424877753,1781229032000,-14918.09448887,0.000143,2]
[424877741,1781229032000,-500.0,0.00014299,2]
[424877792,1781229040000,-553.71240003,0.000143,2]
[424877797,1781229041000,-831.32520557,0.000143,2]
[424877799,1781229041000,-81224.67063144,0.000143,2]
[424877798,1781229041000,-4063.64,0.000143,2]
[424877860,1781229059000,-285.80440633,0.000143,2]
[424877861,1781229059000,-573.5492,0.000143,2]
[424877862,1781229059000,-753.8652039,0.000143,2]
[424877863,1781229059000,-1974.47736668,0.000143,2]
[424877866,1781229059000,-1477.65228462,0.000143,2]
[424877869,1781229059000,-425.6300503,0.000143,2]
[424877865,1781229059000,-593.65373297,0.000143,2]
[424877867,1781229059000,-467.9684,0.000143,2]
[424877868,1781229059000,-1155.26977686,0.000143,2]
[424877870,1781229059000,-672.29599816,0.000143,2]
[424877864,1781229059000,-444.0,0.000143,2]
[424877878,1781229060000,-256.51187351,0.000143,2]
[424877877,1781229060000,-2034.61950838,0.000143,2]
[424877876,1781229060000,-7744.56414739,0.000143,2]
[424877874,1781229060000,-423.34359861,0.000143,2]
[424877875,1781229060000,-1621.03444556,0.000143,2]
[424877872,1781229060000,-1180.95304529,0.000143,2]
[424877873,1781229060000,-266.79707785,0.000143,2]
[424877871,1781229060000,-6525.71232224,0.000143,2]
[424877882,1781229414000,-826.63,0.00013591,2]
[424877892,1781229467000,-189.35,0.00013276,2]
[424877894,1781229521000,-660.77,0.00013379,2]
[424877897,1781229574000,-500.0,0.00013455,2]
[424877899,1781229593000,-1948.131241,0.00013455,2]
[424877901,1781229646000,-150.0,0.00013462,2]
[424877907,1781229700000,-200.0,0.000136,4]
[424877908,1781229753000,-500.0,0.00013606,2]
[424877909,1781229775000,-1550.73,0.00013606,2]
[424877911,1781229775000,-150.0,0.00013634,2]
[424877912,1781229775000,-454.95,0.00013663,2]
[424877910,1781229775000,-160.0,0.00013607,2]
[424877917,1781229775000,-800.0,0.000139,5]
[424877913,1781229775000,-200.0,0.00013699,2]
[424877918,1781229775000,-250.0,0.00014,2]
[424877914,1781229775000,-400.0,0.000137,5]
[424877915,1781229775000,-600.0,0.000138,5]
[424877916,1781229775000,-150.0,0.00013871,2]
[424877919,1781229778000,151.0,0.00012804,2]
[424877920,1781229781000,151.0,0.00012804,2]
[424877921,1781229786000,151.0,0.00012804,2]
[424877922,1781229788000,151.0,0.00012804,2]
[424877926,1781229827000,-207.0,0.00014137,2]
[424877928,1781229827000,-229.727,0.00014138,2]
[424877927,1781229827000,-684.21536987,0.00014138,2]
[424877929,1781229827000,-3476.619,0.00014138,2]
[424877930,1781229827000,-500.0,0.00014174,2]
[424877931,1781229827000,-150.0,0.00014174,2]
[424877933,1781229827000,-500.0,0.00014174,2]
[424877936,1781229827000,-150.0,0.00014174,2]
[424877934,1781229827000,-150.0,0.00014174,2]
[424877935,1781229827000,-209.60237317,0.00014174,2]
[424877938,1781229827000,-3278.41017979,0.00014194,2]
[424877937,1781229827000,-171.42607717,0.00014174,2]
[424877932,1781229827000,-500.0,0.00014174,2]
[424877940,1781229869000,166.66,0.00013294,2]
[424877939,1781229869000,166.66,0.0001302,2]
[424877942,1781229870000,166.66,0.00013842,2]
[424877941,1781229870000,166.66,0.00013568,2]
[424877943,1781229879000,-166.66,0.00014116,2]
[424877945,1781229879000,-6753.7518867,0.00014194,2]
[424877944,1781229879000,-3079.5881133,0.00014133,2]
[424877947,1781229889000,-19166.49480861,0.00014194,2]
[424877946,1781229889000,-564.55519139,0.00014193,2]
[424877950,1781229936000,-9500.0,0.00014194,2]
[424877949,1781229936000,-500.0,0.00014193,2]
[424877952,1781229947000,-5474.5465403,0.00014095,2]
[424877953,1781229947000,-2025.4534597,0.00014194,2]
[424877951,1781229947000,-2500.0,0.00014094,2]
[424877955,1781229955000,-4525.4534597,0.00014194,2]
[424877954,1781229955000,-5474.5465403,0.00014184,2]
[424877957,1781229965000,-9700.97,0.00014194,2]
[424877956,1781229965000,-299.03,0.0001369,2]
[424877961,1781230019000,-10000.0,0.00014194,2]
[424877963,1781230044000,-9362.65148465,0.00014194,2]
[424877962,1781230044000,-637.34851535,0.00014095,2]
[424877969,1781230232000,-500.0,0.0001363,2]
[424877970,1781230232000,-500.0,0.0001363,2]
[424877968,1781230232000,-173.99,0.00013473,2]
[424877965,1781230232000,-661.3,0.00013379,2]
[424877980,1781230233000,-500.0,0.00014025,2]
[424877983,1781230233000,-500.0,0.00014025,2]
[424877986,1781230233000,-500.0,0.00014025,2]
[424877984,1781230233000,-500.0,0.00014025,2]
[424877981,1781230233000,-500.0,0.00014025,2]
[424877982,1781230233000,-500.0,0.00014025,2]
[424877979,1781230233000,-500.0,0.00014025,2]
[424877985,1781230233000,-500.0,0.00014025,2]
[424877976,1781230233000,-500.0,0.00014025,2]
[424877977,1781230233000,-500.0,0.00014025,2]
[424877974,1781230233000,-500.0,0.00013904,2]